[Event "Titled Tuesday Blitz June 21 Early 2022"]
[White "Ursan, Petru-Sebastian"]
[Black "Pinheiro, Iung Alicio de O."]
[WhiteFideId "1227556"]
[BlackFideId "2104350"]
[WhiteElo "2066"]
[BlackElo "2283"]
[Result "0-1"]
[Round "08"]
[TimeControl "180+1"]
[Date "2022.06.21"]
[WhiteClock "0:00:06"]
[BlackClock "0:00:20"]

1. d4 {[%clk 0:02:58]}  Nf6 {[%clk 0:02:57]} 2. Nf3 {[%clk 0:02:54]}  e6 {[%clk 0:02:53]} 3. g3 {[%clk 0:02:54]}  b5 {[%clk 0:02:52]} 4. a4 {[%clk 0:02:54]}  b4 {[%clk 0:02:51]} 5. c4 {[%clk 0:02:55]}  bxc3 {[%clk 0:02:51]} 6. bxc3 {[%clk 0:02:55]}  Bb7 {[%clk 0:02:47]} 7. Bg2 {[%clk 0:02:55]}  Be7 {[%clk 0:02:45]} 8. Ba3 {[%clk 0:02:54]}  d6 {[%clk 0:02:41]} 9. O-O {[%clk 0:02:53]}  O-O {[%clk 0:02:41]} 10. Nbd2 {[%clk 0:02:47]}  Na6 {[%clk 0:02:35]} 11. Rb1 {[%clk 0:02:43]}  Bc6 {[%clk 0:02:31]} 12. Qc2 {[%clk 0:02:34]}  Qd7 {[%clk 0:02:30]} 13. a5 {[%clk 0:02:29]}  Rab8 {[%clk 0:02:23]} 14. e4 {[%clk 0:02:21]}  Bb5 {[%clk 0:02:17]} 15. c4 {[%clk 0:02:18]}  Ba4 {[%clk 0:02:17]} 16. Qd3 {[%clk 0:02:16]}  c5 {[%clk 0:02:10]} 17. d5 {[%clk 0:01:53]}  exd5 {[%clk 0:01:43]} 18. exd5 {[%clk 0:01:50]}  Nc7 {[%clk 0:01:34]} 19. Nh4 {[%clk 0:01:44]}  g6 {[%clk 0:01:25]} 20. Bb2 {[%clk 0:01:42]}  Rfe8 {[%clk 0:00:56]} 21. Nhf3 {[%clk 0:01:35]}  Nh5 {[%clk 0:00:53]} 22. Ne4 {[%clk 0:01:28]}  Rb3 {[%clk 0:00:51]} 23. Qd2 {[%clk 0:01:21]}  Reb8 {[%clk 0:00:50]} 24. Nfg5 {[%clk 0:01:10]}  Ne8 {[%clk 0:00:42]} 25. Bh3 {[%clk 0:01:02]}  Qb7 {[%clk 0:00:40]} 26. Nxf7 {[%clk 0:00:40]}  Rxb2 {[%clk 0:00:28]} 27. Rxb2 {[%clk 0:00:20]}  Qxb2 {[%clk 0:00:29]} 28. Qe3 {[%clk 0:00:17]}  Qd4 {[%clk 0:00:23]} 29. Be6 {[%clk 0:00:16]}  Qxe3 {[%clk 0:00:21]} 30. fxe3 {[%clk 0:00:17]}  Kg7 {[%clk 0:00:21]} 31. Nfg5 {[%clk 0:00:15]}  Nef6 {[%clk 0:00:21]} 32. Nxf6 {[%clk 0:00:13]}  Nxf6 {[%clk 0:00:22]} 33. h4 {[%clk 0:00:12]}  Bc2 {[%clk 0:00:21]} 34. Ra1 {[%clk 0:00:11]}  Rb1+ {[%clk 0:00:21]} 35. Rxb1 {[%clk 0:00:11]}  Bxb1 {[%clk 0:00:22]} 36. Kf2 {[%clk 0:00:12]}  Bd3 {[%clk 0:00:22]} 37. Bc8 {[%clk 0:00:10]}  Ne4+ {[%clk 0:00:21]} 38. Nxe4 {[%clk 0:00:10]}  Bxe4 {[%clk 0:00:22]} 39. Ke2 {[%clk 0:00:10]}  Bd8 {[%clk 0:00:22]} 40. a6 {[%clk 0:00:09]}  Kf6 {[%clk 0:00:22]} 41. Bb7 {[%clk 0:00:10]}  h5 {[%clk 0:00:22]} 42. Bc8 {[%clk 0:00:10]}  Ba5 {[%clk 0:00:21]} 43. Bd7 {[%clk 0:00:09]}  Bf5 {[%clk 0:00:21]} 44. Be8 {[%clk 0:00:09]}  Bc3 {[%clk 0:00:21]} 45. Bc6 {[%clk 0:00:07]}  Be5 {[%clk 0:00:21]} 46. Kf2 {[%clk 0:00:06]}  Bd3 {[%clk 0:00:21]} 47. Bb5 {[%clk 0:00:07]}  Ke7 {[%clk 0:00:18]} 48. Kf3 {[%clk 0:00:08]}  Kd8 {[%clk 0:00:18]} 49. g4 {[%clk 0:00:08]}  Kc7 {[%clk 0:00:18]} 50. gxh5 {[%clk 0:00:07]}  gxh5 {[%clk 0:00:19]} 51. Be8 {[%clk 0:00:06]}  Bxc4 {[%clk 0:00:19]} 52. Bxh5 {[%clk 0:00:07]}  Bxd5+ {[%clk 0:00:20]} 53. e4 {[%clk 0:00:08]}  Bc4 {[%clk 0:00:19]} 54. Be8 {[%clk 0:00:09]}  Bxa6 {[%clk 0:00:19]} 55. h5 {[%clk 0:00:09]}  Bc4 {[%clk 0:00:19]} 56. h6 {[%clk 0:00:09]}  a5 {[%clk 0:00:19]} 57. h7 {[%clk 0:00:09]}  Bb3 {[%clk 0:00:20]} 58. Ke3 {[%clk 0:00:06]}  a4 {[%clk 0:00:20]} 59. Bxa4 {[%clk 0:00:06]}  Bxa4 {[%clk 0:00:20]} 60. Kd2 {[%clk 0:00:06]}  Bb3 {[%clk 0:00:20]} 0-1


[Site "https://www.chess.com"]

[Event "Titled Tuesday Blitz June 21 Early 2022"]
[White "Vakhlamov, Igor L."]
[Black "Svane, Frederik"]
[WhiteFideId "24126748"]
[BlackFideId "12923044"]
[WhiteElo "2401"]
[BlackElo "2459"]
[Result "1/2-1/2"]
[Round "08"]
[TimeControl "180+1"]
[Date "2022.06.21"]
[WhiteClock "0:00:04"]
[BlackClock "0:00:14"]

1. e4 {[%clk 0:03:00]}  c5 {[%clk 0:03:00]} 2. Nf3 {[%clk 0:03:00]}  e6 {[%clk 0:03:00]} 3. Nc3 {[%clk 0:03:01]}  Nc6 {[%clk 0:03:00]} 4. Bb5 {[%clk 0:03:01]}  Nge7 {[%clk 0:03:00]} 5. O-O {[%clk 0:03:01]}  a6 {[%clk 0:03:00]} 6. Bxc6 {[%clk 0:03:01]}  Nxc6 {[%clk 0:03:01]} 7. d4 {[%clk 0:03:01]}  cxd4 {[%clk 0:03:01]} 8. Nxd4 {[%clk 0:03:02]}  d6 {[%clk 0:02:56]} 9. Nxc6 {[%clk 0:02:57]}  bxc6 {[%clk 0:02:57]} 10. Qh5 {[%clk 0:02:57]}  g6 {[%clk 0:02:53]} 11. Qf3 {[%clk 0:02:55]}  Bg7 {[%clk 0:02:51]} 12. Bf4 {[%clk 0:02:55]}  e5 {[%clk 0:02:48]} 13. Be3 {[%clk 0:02:53]}  O-O {[%clk 0:02:47]} 14. Rad1 {[%clk 0:02:53]}  Qc7 {[%clk 0:02:44]} 15. Rd3 {[%clk 0:02:44]}  Be6 {[%clk 0:02:44]} 16. Rfd1 {[%clk 0:02:44]}  Rad8 {[%clk 0:02:41]} 17. b3 {[%clk 0:02:08]}  f5 {[%clk 0:02:39]} 18. Bg5 {[%clk 0:02:07]}  fxe4 {[%clk 0:02:31]} 19. Qxe4 {[%clk 0:02:08]}  d5 {[%clk 0:02:32]} 20. Qe1 {[%clk 0:02:05]}  Rde8 {[%clk 0:02:30]} 21. Na4 {[%clk 0:02:04]}  Bg4 {[%clk 0:02:25]} 22. f3 {[%clk 0:02:02]}  e4 {[%clk 0:02:24]} 23. Re3 {[%clk 0:01:59]}  Bf5 {[%clk 0:01:55]} 24. fxe4 {[%clk 0:01:57]}  Bxe4 {[%clk 0:01:53]} 25. Nc5 {[%clk 0:01:54]}  Qe5 {[%clk 0:01:46]} 26. Bh4 {[%clk 0:01:30]}  Qf5 {[%clk 0:01:45]} 27. Nxe4 {[%clk 0:01:28]}  dxe4 {[%clk 0:01:42]} 28. Qe2 {[%clk 0:00:39]}  c5 {[%clk 0:01:22]} 29. c3 {[%clk 0:00:38]}  Bh6 {[%clk 0:01:22]} 30. Rh3 {[%clk 0:00:38]}  e3 {[%clk 0:01:20]} 31. Rf3 {[%clk 0:00:35]}  Qe4 {[%clk 0:01:19]} 32. Rxf8+ {[%clk 0:00:35]}  Rxf8 {[%clk 0:01:20]} 33. Bg3 {[%clk 0:00:34]}  Bf4 {[%clk 0:01:16]} 34. Bxf4 {[%clk 0:00:34]}  Rxf4 {[%clk 0:01:05]} 35. Re1 {[%clk 0:00:31]}  Rf2 {[%clk 0:01:01]} 36. Qc4+ {[%clk 0:00:25]}  Qxc4 {[%clk 0:01:02]} 37. bxc4 {[%clk 0:00:26]}  Rxa2 {[%clk 0:01:02]} 38. Rxe3 {[%clk 0:00:27]}  Ra4 {[%clk 0:01:02]} 39. Re4 {[%clk 0:00:21]}  Kf7 {[%clk 0:01:02]} 40. Kf2 {[%clk 0:00:21]}  Kf6 {[%clk 0:01:03]} 41. Ke2 {[%clk 0:00:21]}  Ra2+ {[%clk 0:01:03]} 42. Kf3 {[%clk 0:00:20]}  Rc2 {[%clk 0:01:03]} 43. Re3 {[%clk 0:00:18]}  a5 {[%clk 0:01:03]} 44. h4 {[%clk 0:00:19]}  a4 {[%clk 0:01:03]} 45. g4 {[%clk 0:00:14]}  a3 {[%clk 0:01:03]} 46. Ke4 {[%clk 0:00:14]}  a2 {[%clk 0:01:01]} 47. Re1 {[%clk 0:00:14]}  Rxc3 {[%clk 0:01:01]} 48. Kd5 {[%clk 0:00:14]}  Ra3 {[%clk 0:01:01]} 49. Ra1 {[%clk 0:00:15]}  Ra5 {[%clk 0:01:02]} 50. Kc6 {[%clk 0:00:15]}  Ke5 {[%clk 0:01:01]} 51. Kb6 {[%clk 0:00:15]}  Ra8 {[%clk 0:01:00]} 52. Kxc5 {[%clk 0:00:16]}  Kf4 {[%clk 0:00:57]} 53. Kb6 {[%clk 0:00:16]}  Kxg4 {[%clk 0:00:56]} 54. c5 {[%clk 0:00:17]}  Kxh4 {[%clk 0:00:55]} 55. c6 {[%clk 0:00:17]}  g5 {[%clk 0:00:55]} 56. c7 {[%clk 0:00:16]}  g4 {[%clk 0:00:52]} 57. Rxa2 {[%clk 0:00:16]}  Rxa2 {[%clk 0:00:52]} 58. c8=Q {[%clk 0:00:17]}  Rb2+ {[%clk 0:00:43]} 59. Ka5 {[%clk 0:00:17]}  h5 {[%clk 0:00:34]} 60. Qd8+ {[%clk 0:00:17]}  Kh3 {[%clk 0:00:33]} 61. Qd3+ {[%clk 0:00:14]}  Kh2 {[%clk 0:00:27]} 62. Qf5 {[%clk 0:00:10]}  g3 {[%clk 0:00:17]} 63. Qxh5+ {[%clk 0:00:10]}  Kg1 {[%clk 0:00:18]} 64. Qd1+ {[%clk 0:00:09]}  Kh2 {[%clk 0:00:17]} 65. Qd6 {[%clk 0:00:10]}  Rf2 {[%clk 0:00:16]} 66. Kb4 {[%clk 0:00:10]}  Kh3 {[%clk 0:00:16]} 67. Qh6+ {[%clk 0:00:10]}  Kg2 {[%clk 0:00:17]} 68. Kc3 {[%clk 0:00:10]}  Kf3 {[%clk 0:00:17]} 69. Qc6+ {[%clk 0:00:10]}  Kg4 {[%clk 0:00:17]} 70. Qe6+ {[%clk 0:00:10]}  Kh4 {[%clk 0:00:18]} 71. Qh6+ {[%clk 0:00:10]}  Kg4 {[%clk 0:00:18]} 72. Qg6+ {[%clk 0:00:10]}  Kf4 {[%clk 0:00:18]} 73. Kd3 {[%clk 0:00:09]}  Rf3+ {[%clk 0:00:16]} 74. Kd4 {[%clk 0:00:08]}  Rf2 {[%clk 0:00:16]} 75. Qe4+ {[%clk 0:00:08]}  Kg5 {[%clk 0:00:17]} 76. Qe5+ {[%clk 0:00:08]}  Kg4 {[%clk 0:00:17]} 77. Qg7+ {[%clk 0:00:09]}  Kh3 {[%clk 0:00:18]} 78. Qh6+ {[%clk 0:00:10]}  Kg2 {[%clk 0:00:18]} 79. Ke4 {[%clk 0:00:07]}  Rf1 {[%clk 0:00:18]} 80. Qc6 {[%clk 0:00:07]}  Rf2 {[%clk 0:00:18]} 81. Ke3+ {[%clk 0:00:06]}  Kh2 {[%clk 0:00:18]} 82. Qd6 {[%clk 0:00:06]}  Kg2 {[%clk 0:00:18]} 83. Qd5+ {[%clk 0:00:07]}  Kh2 {[%clk 0:00:18]} 84. Qh5+ {[%clk 0:00:07]}  Kg2 {[%clk 0:00:19]} 85. Qh4 {[%clk 0:00:08]}  Rf3+ {[%clk 0:00:19]} 86. Ke2 {[%clk 0:00:08]}  Rf2+ {[%clk 0:00:19]} 87. Ke1 {[%clk 0:00:09]}  Kf3 {[%clk 0:00:20]} 88. Qh5+ {[%clk 0:00:09]}  Kg2 {[%clk 0:00:20]} 89. Qd5+ {[%clk 0:00:09]}  Kh2 {[%clk 0:00:20]} 90. Qe4 {[%clk 0:00:09]}  Kh3 {[%clk 0:00:20]} 91. Qh7+ {[%clk 0:00:10]}  Kg2 {[%clk 0:00:20]} 92. Qh4 {[%clk 0:00:09]}  Kf3 {[%clk 0:00:18]} 93. Qf6+ {[%clk 0:00:06]}  Kg2 {[%clk 0:00:18]} 94. Qe5 {[%clk 0:00:06]}  Kh2 {[%clk 0:00:17]} 95. Qd6 {[%clk 0:00:05]}  Kg2 {[%clk 0:00:17]} 96. Qd5+ {[%clk 0:00:06]}  Kh2 {[%clk 0:00:18]} 97. Qh5+ {[%clk 0:00:06]}  Kg1 {[%clk 0:00:18]} 98. Qh4 {[%clk 0:00:06]}  Kg2 {[%clk 0:00:18]} 99. Qe4+ {[%clk 0:00:06]}  Kh2 {[%clk 0:00:17]} 100. Qh4+ {[%clk 0:00:05]}  Kg2 {[%clk 0:00:17]} 101. Qc4 {[%clk 0:00:06]}  Kh3 {[%clk 0:00:15]} 102. Qe6+ {[%clk 0:00:05]}  Kh2 {[%clk 0:00:15]} 103. Qh6+ {[%clk 0:00:06]}  Kg1 {[%clk 0:00:15]} 104. Qh7 {[%clk 0:00:07]}  g2 {[%clk 0:00:13]} 105. Qa7 {[%clk 0:00:07]}  Kh1 {[%clk 0:00:13]} 106. Qh7+ {[%clk 0:00:06]}  Kg1 {[%clk 0:00:14]} 107. Qa7 {[%clk 0:00:04]}  Kh1 {[%clk 0:00:14]} 108. Qh7+ {[%clk 0:00:04]}  Kg1 {[%clk 0:00:14]} 1/2-1/2


[Site "https://www.chess.com"]

[Event "Titled Tuesday Blitz June 21 Early 2022"]
[White "Vusatiuk, Vladimir"]
[Black "Khabinets, Ivan"]
[WhiteFideId "14118610"]
[BlackFideId "14115980"]
[WhiteElo "2157"]
[BlackElo "2114"]
[Result "0-1"]
[Round "08"]
[TimeControl "180+1"]
[Date "2022.06.21"]
[WhiteClock "0:00:05"]
[BlackClock "0:00:15"]

1. f4 {[%clk 0:02:59]}  d5 {[%clk 0:02:57]} 2. g3 {[%clk 0:02:58]}  Nf6 {[%clk 0:02:57]} 3. Bg2 {[%clk 0:02:58]}  c5 {[%clk 0:02:57]} 4. Nf3 {[%clk 0:02:59]}  Nc6 {[%clk 0:02:56]} 5. O-O {[%clk 0:02:59]}  g6 {[%clk 0:02:57]} 6. d3 {[%clk 0:02:59]}  Bg7 {[%clk 0:02:57]} 7. Nbd2 {[%clk 0:02:59]}  O-O {[%clk 0:02:58]} 8. e4 {[%clk 0:02:59]}  dxe4 {[%clk 0:02:50]} 9. dxe4 {[%clk 0:02:59]}  b6 {[%clk 0:02:48]} 10. Qe2 {[%clk 0:02:56]}  Nb4 {[%clk 0:02:46]} 11. c3 {[%clk 0:02:28]}  Ba6 {[%clk 0:02:44]} 12. Nc4 {[%clk 0:02:28]}  Qd3 {[%clk 0:02:44]} 13. Qxd3 {[%clk 0:02:03]}  Nxd3 {[%clk 0:02:45]} 14. Ncd2 {[%clk 0:02:03]}  Rad8 {[%clk 0:02:36]} 15. Rd1 {[%clk 0:01:58]}  Ng4 {[%clk 0:01:53]} 16. Nf1 {[%clk 0:01:56]}  Ngf2 {[%clk 0:01:50]} 17. Rd2 {[%clk 0:01:54]}  Nxe4 {[%clk 0:01:49]} 18. Rc2 {[%clk 0:01:51]}  f5 {[%clk 0:01:42]} 19. Be3 {[%clk 0:01:50]}  e5 {[%clk 0:01:37]} 20. fxe5 {[%clk 0:01:40]}  Nxe5 {[%clk 0:01:38]} 21. Nxe5 {[%clk 0:01:40]}  Bxe5 {[%clk 0:01:39]} 22. Re1 {[%clk 0:01:35]}  Bb7 {[%clk 0:01:31]} 23. Nd2 {[%clk 0:01:26]}  Rfe8 {[%clk 0:01:03]} 24. Nxe4 {[%clk 0:01:25]}  Bxe4 {[%clk 0:01:01]} 25. Bxe4 {[%clk 0:01:25]}  fxe4 {[%clk 0:01:02]} 26. Bg5 {[%clk 0:01:25]}  Rd6 {[%clk 0:01:01]} 27. Rce2 {[%clk 0:01:22]}  Rde6 {[%clk 0:01:02]} 28. Kg2 {[%clk 0:01:19]}  Bd6 {[%clk 0:01:00]} 29. a4 {[%clk 0:01:06]}  Kg7 {[%clk 0:00:59]} 30. a5 {[%clk 0:01:06]}  b5 {[%clk 0:00:57]} 31. Rd1 {[%clk 0:01:05]}  h6 {[%clk 0:00:56]} 32. Be3 {[%clk 0:01:01]}  Rc8 {[%clk 0:00:38]} 33. Rd5 {[%clk 0:00:59]}  g5 {[%clk 0:00:38]} 34. Red2 {[%clk 0:00:58]}  Rc6 {[%clk 0:00:37]} 35. g4 {[%clk 0:00:53]}  Rf6 {[%clk 0:00:34]} 36. b4 {[%clk 0:00:42]}  cxb4 {[%clk 0:00:32]} 37. Bd4 {[%clk 0:00:43]}  Bf4 {[%clk 0:00:26]} 38. Bxf6+ {[%clk 0:00:35]}  Kxf6 {[%clk 0:00:25]} 39. Rc2 {[%clk 0:00:30]}  a6 {[%clk 0:00:21]} 40. Rd4 {[%clk 0:00:19]}  bxc3 {[%clk 0:00:18]} 41. Rxe4 {[%clk 0:00:19]}  Bd6 {[%clk 0:00:16]} 42. Kf3 {[%clk 0:00:13]}  b4 {[%clk 0:00:16]} 43. Rf2 {[%clk 0:00:07]}  Bf4 {[%clk 0:00:14]} 44. Rxb4 {[%clk 0:00:06]}  c2 {[%clk 0:00:14]} 45. Rxc2 {[%clk 0:00:06]}  Rxc2 {[%clk 0:00:14]} 46. Rb6+ {[%clk 0:00:07]}  Kg7 {[%clk 0:00:14]} 47. h4 {[%clk 0:00:07]}  Rc3+ {[%clk 0:00:14]} 48. Ke4 {[%clk 0:00:08]}  Rc4+ {[%clk 0:00:14]} 49. Kf3 {[%clk 0:00:08]}  Ra4 {[%clk 0:00:13]} 50. hxg5 {[%clk 0:00:07]}  hxg5 {[%clk 0:00:13]} 51. Rxa6 {[%clk 0:00:08]}  Kf7 {[%clk 0:00:12]} 52. Ra7+ {[%clk 0:00:07]}  Ke6 {[%clk 0:00:13]} 53. Kg2 {[%clk 0:00:05]}  Kd6 {[%clk 0:00:12]} 54. Kf3 {[%clk 0:00:04]}  Kc6 {[%clk 0:00:12]} 55. Ra8 {[%clk 0:00:05]}  Kb5 {[%clk 0:00:12]} 56. Rb8+ {[%clk 0:00:05]}  Kxa5 {[%clk 0:00:13]} 57. Rb3 {[%clk 0:00:04]}  Rd4 {[%clk 0:00:12]} 58. Ke2 {[%clk 0:00:02]}  Ka4 {[%clk 0:00:12]} 59. Rb1 {[%clk 0:00:02]}  Re4+ {[%clk 0:00:13]} 60. Kf3 {[%clk 0:00:03]}  Re3+ {[%clk 0:00:13]} 61. Kf2 {[%clk 0:00:03]}  Rg3 {[%clk 0:00:13]} 62. Rb7 {[%clk 0:00:02]}  Rxg4 {[%clk 0:00:13]} 63. Kf3 {[%clk 0:00:03]}  Rg3+ {[%clk 0:00:14]} 64. Ke4 {[%clk 0:00:04]}  Re3+ {[%clk 0:00:14]} 65. Kf5 {[%clk 0:00:05]}  Rd3 {[%clk 0:00:14]} 66. Ke4 {[%clk 0:00:05]}  Re3+ {[%clk 0:00:14]} 67. Kf5 {[%clk 0:00:05]}  Rc3 {[%clk 0:00:15]} 68. Kg4 {[%clk 0:00:05]}  Rb3 {[%clk 0:00:15]} 69. Ra7+ {[%clk 0:00:06]}  Kb4 {[%clk 0:00:15]} 70. Rf7 {[%clk 0:00:05]}  Kc3 {[%clk 0:00:16]} 71. Rd7 {[%clk 0:00:06]}  Kc2 {[%clk 0:00:15]} 72. Kf5 {[%clk 0:00:06]}  Rc3 {[%clk 0:00:16]} 73. Ke4 {[%clk 0:00:05]}  Rc4+ {[%clk 0:00:14]} 74. Kf3 {[%clk 0:00:05]}  Rc5 {[%clk 0:00:14]} 75. Rd8 {[%clk 0:00:05]}  Kc3 {[%clk 0:00:12]} 76. Ke4 {[%clk 0:00:06]}  Kc4 {[%clk 0:00:12]} 77. Rd7 {[%clk 0:00:07]}  Re5+ {[%clk 0:00:12]} 78. Kf3 {[%clk 0:00:07]}  Rd5 {[%clk 0:00:13]} 79. Rc7+ {[%clk 0:00:07]}  Kd4 {[%clk 0:00:13]} 80. Rc8 {[%clk 0:00:08]}  Rd7 {[%clk 0:00:13]} 81. Re8 {[%clk 0:00:08]}  Rh7 {[%clk 0:00:13]} 82. Re4+ {[%clk 0:00:08]}  Kd5 {[%clk 0:00:13]} 83. Re8 {[%clk 0:00:09]}  Rh4 {[%clk 0:00:13]} 84. Re1 {[%clk 0:00:07]}  Bd6 {[%clk 0:00:13]} 85. Re8 {[%clk 0:00:07]}  g4+ {[%clk 0:00:13]} 86. Kg2 {[%clk 0:00:07]}  Rh2+ {[%clk 0:00:13]} 87. Kg1 {[%clk 0:00:08]}  Ra2 {[%clk 0:00:13]} 88. Re1 {[%clk 0:00:06]}  g3 {[%clk 0:00:13]} 89. Re8 {[%clk 0:00:06]}  Be5 {[%clk 0:00:13]} 90. Rf8 {[%clk 0:00:04]}  Ke4 {[%clk 0:00:14]} 91. Rf1 {[%clk 0:00:04]}  Bf4 {[%clk 0:00:15]} 92. Kh1 {[%clk 0:00:04]}  g2+ {[%clk 0:00:14]} 93. Kg1 {[%clk 0:00:04]}  Bh2+ {[%clk 0:00:14]} 94. Kxh2 {[%clk 0:00:04]}  gxf1=Q+ {[%clk 0:00:15]} 95. Kg3 {[%clk 0:00:05]}  Qg2+ {[%clk 0:00:15]} 96. Kh4 {[%clk 0:00:05]}  Ra8 {[%clk 0:00:15]} 97. Kh5 {[%clk 0:00:05]}  Rh8# {[%clk 0:00:15]} 0-1


[Site "https://www.chess.com"]

[Event "Titled Tuesday Blitz June 21 Early 2022"]
[White "Xiong, Jeffery"]
[Black "Kosteniuk, Alexandra"]
[WhiteFideId "2047640"]
[BlackFideId "4128125"]
[WhiteElo "2714"]
[BlackElo "2469"]
[Result "1/2-1/2"]
[Round "08"]
[TimeControl "180+1"]
[Date "2022.06.21"]
[WhiteClock "0:00:19"]
[BlackClock "0:00:07"]

1. e4 {[%clk 0:03:00]}  e5 {[%clk 0:02:59]} 2. Nf3 {[%clk 0:03:01]}  Nc6 {[%clk 0:02:59]} 3. Nc3 {[%clk 0:03:02]}  Nf6 {[%clk 0:02:59]} 4. d4 {[%clk 0:03:02]}  exd4 {[%clk 0:02:59]} 5. Nxd4 {[%clk 0:03:03]}  Bb4 {[%clk 0:02:59]} 6. Nxc6 {[%clk 0:03:04]}  bxc6 {[%clk 0:03:00]} 7. Bd3 {[%clk 0:03:05]}  d5 {[%clk 0:03:00]} 8. exd5 {[%clk 0:03:06]}  O-O {[%clk 0:03:00]} 9. O-O {[%clk 0:03:06]}  cxd5 {[%clk 0:03:00]} 10. h3 {[%clk 0:03:05]}  Rb8 {[%clk 0:02:56]} 11. Qf3 {[%clk 0:03:05]}  Re8 {[%clk 0:02:47]} 12. Rd1 {[%clk 0:03:03]}  Bb7 {[%clk 0:02:36]} 13. Nb5 {[%clk 0:02:19]}  Ne4 {[%clk 0:01:37]} 14. Bf4 {[%clk 0:02:13]}  Ba5 {[%clk 0:01:28]} 15. Nxa7 {[%clk 0:01:33]}  Qf6 {[%clk 0:01:20]} 16. Nb5 {[%clk 0:01:27]}  Bb6 {[%clk 0:01:17]} 17. Bxe4 {[%clk 0:01:24]}  dxe4 {[%clk 0:01:14]} 18. Qg3 {[%clk 0:01:25]}  e3 {[%clk 0:00:53]} 19. fxe3 {[%clk 0:01:24]}  Qxb2 {[%clk 0:00:33]} 20. Nxc7 {[%clk 0:01:24]}  Bxc7 {[%clk 0:00:24]} 21. Bxc7 {[%clk 0:01:25]}  Rbc8 {[%clk 0:00:24]} 22. Rab1 {[%clk 0:01:11]}  Qxc2 {[%clk 0:00:21]} 23. Rdc1 {[%clk 0:01:07]}  Qd2 {[%clk 0:00:20]} 24. Qf2 {[%clk 0:01:00]}  Qd5 {[%clk 0:00:18]} 25. Rd1 {[%clk 0:00:55]}  Qe4 {[%clk 0:00:17]} 26. Rbc1 {[%clk 0:00:40]}  h6 {[%clk 0:00:16]} 27. Rd4 {[%clk 0:00:25]}  Qe7 {[%clk 0:00:13]} 28. Rdc4 {[%clk 0:00:21]}  Qxe3 {[%clk 0:00:11]} 29. Qxe3 {[%clk 0:00:20]}  Rxe3 {[%clk 0:00:12]} 30. a4 {[%clk 0:00:15]}  Re2 {[%clk 0:00:12]} 31. R1c2 {[%clk 0:00:16]}  Rxc2 {[%clk 0:00:09]} 32. Rxc2 {[%clk 0:00:17]}  f6 {[%clk 0:00:08]} 33. a5 {[%clk 0:00:17]}  Kf7 {[%clk 0:00:08]} 34. Kf2 {[%clk 0:00:15]}  Be4 {[%clk 0:00:07]} 35. Rc3 {[%clk 0:00:11]}  f5 {[%clk 0:00:07]} 36. a6 {[%clk 0:00:11]}  Ke6 {[%clk 0:00:07]} 37. a7 {[%clk 0:00:11]}  Kd7 {[%clk 0:00:07]} 38. Be5 {[%clk 0:00:11]}  Rxc3 {[%clk 0:00:06]} 39. Bxc3 {[%clk 0:00:12]}  g5 {[%clk 0:00:06]} 40. Bg7 {[%clk 0:00:06]}  h5 {[%clk 0:00:06]} 41. g3 {[%clk 0:00:05]}  g4 {[%clk 0:00:06]} 42. h4 {[%clk 0:00:05]}  Kc8 {[%clk 0:00:02]} 43. Ke3 {[%clk 0:00:05]}  Kb7 {[%clk 0:00:02]} 44. Bd4 {[%clk 0:00:06]}  Bc6 {[%clk 0:00:02]} 45. Kf4 {[%clk 0:00:06]}  Be8 {[%clk 0:00:01]} 46. Kg5 {[%clk 0:00:04]}  Ka8 {[%clk 0:00:02]} 47. Kf6 {[%clk 0:00:03]}  Kb7 {[%clk 0:00:02]} 48. Ke7 {[%clk 0:00:03]}  Bc6 {[%clk 0:00:02]} 49. Kf7 {[%clk 0:00:04]}  Ka8 {[%clk 0:00:02]} 50. Be3 {[%clk 0:00:05]}  Bb5 {[%clk 0:00:02]} 51. Bb6 {[%clk 0:00:04]}  Bc6 {[%clk 0:00:03]} 52. Bf2 {[%clk 0:00:05]}  Bb5 {[%clk 0:00:03]} 53. Kg6 {[%clk 0:00:06]}  Be8+ {[%clk 0:00:03]} 54. Kf6 {[%clk 0:00:07]}  Kb7 {[%clk 0:00:03]} 55. Ke7 {[%clk 0:00:07]}  Bc6 {[%clk 0:00:03]} 56. Kf7 {[%clk 0:00:07]}  Bb5 {[%clk 0:00:03]} 57. Kg6 {[%clk 0:00:08]}  Be8+ {[%clk 0:00:03]} 58. Kg7 {[%clk 0:00:08]}  Ka8 {[%clk 0:00:03]} 59. Be3 {[%clk 0:00:08]}  Kb7 {[%clk 0:00:03]} 60. Kh6 {[%clk 0:00:08]}  Ka8 {[%clk 0:00:03]} 61. Bd4 {[%clk 0:00:09]}  Kb7 {[%clk 0:00:03]} 62. Kg5 {[%clk 0:00:10]}  Ka8 {[%clk 0:00:03]} 63. Kf6 {[%clk 0:00:10]}  Kb7 {[%clk 0:00:04]} 64. Be3 {[%clk 0:00:11]}  Ka8 {[%clk 0:00:04]} 65. Ke7 {[%clk 0:00:12]}  Bc6 {[%clk 0:00:04]} 66. Kf7 {[%clk 0:00:13]}  Kb7 {[%clk 0:00:04]} 67. Bd4 {[%clk 0:00:14]}  Ka8 {[%clk 0:00:05]} 68. Bf2 {[%clk 0:00:14]}  Kb7 {[%clk 0:00:05]} 69. Ke7 {[%clk 0:00:15]}  Ka8 {[%clk 0:00:05]} 70. Be3 {[%clk 0:00:15]}  Kb7 {[%clk 0:00:06]} 71. Kf8 {[%clk 0:00:16]}  Ka8 {[%clk 0:00:06]} 72. Bc5 {[%clk 0:00:17]}  Kb7 {[%clk 0:00:06]} 73. Kf7 {[%clk 0:00:18]}  Ka8 {[%clk 0:00:07]} 74. Bd4 {[%clk 0:00:18]}  Kb7 {[%clk 0:00:07]} 75. Kg6 {[%clk 0:00:18]}  Be8+ {[%clk 0:00:07]} 76. Kxf5 {[%clk 0:00:19]}  Ka8 {[%clk 0:00:07]} 77. Ke6 {[%clk 0:00:19]}  Kb7 {[%clk 0:00:07]} 78. Ke7 {[%clk 0:00:19]}  Bb5 {[%clk 0:00:07]} 79. Kf7 {[%clk 0:00:19]}  Ka8 {[%clk 0:00:07]} 80. Bf2 {[%clk 0:00:19]}  Kb7 {[%clk 0:00:07]} 1/2-1/2


[Site "https://www.chess.com"]